[Event "January 2 Late 2024"]
[Site "https://www.chess.com"]
[Date "2024.01.02"]
[Round "8"]
[White "Martinez Alcantara, Jose Eduardo"]
[Black "Szpar, Milosz"]
[Result "0-1"]
[Board "13"]
[TimeControl "180+1"]
[WhiteFideId "3805662"]
[BlackFideId "1184989"]
[WhiteElo "3046"]
[BlackElo "2874"]
[WhiteTeam "PER"]
[BlackTeam "POL"]
[WhiteClock "0:00:11"]
[BlackClock "0:00:05"]

1. e4 {[%clk 0:03:00]}  e6 {[%clk 0:03:00]} 2. d4 {[%clk 0:03:01]}  d5 {[%clk 0:03:00]} 3. Nd2 {[%clk 0:03:01]}  Be7 {[%clk 0:03:01]} 4. e5 {[%clk 0:03:01]}  c5 {[%clk 0:03:01]} 5. c3 {[%clk 0:03:01]}  Nc6 {[%clk 0:03:01]} 6. Bd3 {[%clk 0:03:02]}  Bd7 {[%clk 0:03:01]} 7. Ndf3 {[%clk 0:03:01]}  f6 {[%clk 0:02:55]} 8. Ne2 {[%clk 0:02:57]}  fxe5 {[%clk 0:02:49]} 9. dxe5 {[%clk 0:02:52]}  Qc7 {[%clk 0:02:44]} 10. Bf4 {[%clk 0:02:51]}  O-O-O {[%clk 0:02:44]} 11. O-O {[%clk 0:02:42]}  Nh6 {[%clk 0:02:40]} 12. b4 {[%clk 0:02:35]}  Nf7 {[%clk 0:02:29]} 13. bxc5 {[%clk 0:02:33]}  g5 {[%clk 0:02:20]} 14. Bg3 {[%clk 0:02:23]}  Bxc5 {[%clk 0:01:50]} 15. Ned4 {[%clk 0:02:15]}  h5 {[%clk 0:01:08]} 16. h3 {[%clk 0:02:02]}  g4 {[%clk 0:01:06]} 17. hxg4 {[%clk 0:02:02]}  hxg4 {[%clk 0:01:06]} 18. Nb5 {[%clk 0:02:00]}  Qb8 {[%clk 0:00:59]} 19. Nfd4 {[%clk 0:02:00]}  Ncxe5 {[%clk 0:00:55]} 20. Bg6 {[%clk 0:01:52]}  Rh6 {[%clk 0:00:28]} 21. Bxf7 {[%clk 0:01:30]}  Rdh8 {[%clk 0:00:28]} 22. f3 {[%clk 0:01:31]}  Bxb5 {[%clk 0:00:29]} 23. Re1 {[%clk 0:01:12]}  Nd3 {[%clk 0:00:27]} 24. Bxe6+ {[%clk 0:01:10]}  Rxe6 {[%clk 0:00:27]} 25. Bxb8 {[%clk 0:01:00]}  Rxe1+ {[%clk 0:00:24]} 26. Qxe1 {[%clk 0:01:00]}  Nxe1 {[%clk 0:00:25]} 27. Be5 {[%clk 0:01:01]}  Nxf3+ {[%clk 0:00:06]} 28. gxf3 {[%clk 0:01:00]}  Rg8 {[%clk 0:00:02]} 29. f4 {[%clk 0:01:00]}  Bd3 {[%clk 0:00:03]} 30. Kf2 {[%clk 0:00:57]}  g3+ {[%clk 0:00:03]} 31. Ke3 {[%clk 0:00:57]}  Be4 {[%clk 0:00:04]} 32. Rg1 {[%clk 0:00:58]}  g2 {[%clk 0:00:03]} 33. Kf2 {[%clk 0:00:50]}  Be7 {[%clk 0:00:03]} 34. f5 {[%clk 0:00:44]}  Bh4+ {[%clk 0:00:03]} 35. Ke2 {[%clk 0:00:44]}  Kd7 {[%clk 0:00:03]} 36. Ke3 {[%clk 0:00:38]}  Rg4 {[%clk 0:00:02]} 37. f6 {[%clk 0:00:37]}  Bg5+ {[%clk 0:00:02]} 38. Ke2 {[%clk 0:00:38]}  Rh4 {[%clk 0:00:01]} 39. f7 {[%clk 0:00:33]}  Be7 {[%clk 0:00:02]} 40. Bf6 {[%clk 0:00:33]}  Rh3 {[%clk 0:00:01]} 41. Kf2 {[%clk 0:00:27]}  Rxc3 {[%clk 0:00:01]} 42. Nf3 {[%clk 0:00:25]}  Rc2+ {[%clk 0:00:01]} 43. Kg3 {[%clk 0:00:26]}  Bd6+ {[%clk 0:00:02]} 44. Be5 {[%clk 0:00:25]}  Rc8 {[%clk 0:00:03]} 45. Bxd6 {[%clk 0:00:24]}  Kxd6 {[%clk 0:00:04]} 46. Rxg2 {[%clk 0:00:17]}  Bxf3 {[%clk 0:00:04]} 47. Kxf3 {[%clk 0:00:17]}  Rf8 {[%clk 0:00:05]} 48. Rg7 {[%clk 0:00:16]}  Ke6 {[%clk 0:00:05]} 49. Ke3 {[%clk 0:00:16]}  Rxf7 {[%clk 0:00:06]} 50. Rg6+ {[%clk 0:00:16]}  Rf6 {[%clk 0:00:05]} 51. Rg7 {[%clk 0:00:17]}  Rf7 {[%clk 0:00:06]} 52. Rg6+ {[%clk 0:00:17]}  Ke5 {[%clk 0:00:07]} 53. Rg5+ {[%clk 0:00:18]}  Kd6 {[%clk 0:00:07]} 54. Rh5 {[%clk 0:00:16]}  Kc5 {[%clk 0:00:07]} 55. a4 {[%clk 0:00:15]}  Re7+ {[%clk 0:00:07]} 56. Kd3 {[%clk 0:00:16]}  Rg7 {[%clk 0:00:07]} 57. Rh3 {[%clk 0:00:16]}  b6 {[%clk 0:00:06]} 58. Rh8 {[%clk 0:00:14]}  Kb4 {[%clk 0:00:05]} 59. Kd4 {[%clk 0:00:13]}  Kxa4 {[%clk 0:00:05]} 60. Kxd5 {[%clk 0:00:14]}  Kb5 {[%clk 0:00:05]} 61. Rh5 {[%clk 0:00:14]}  Rc7 {[%clk 0:00:05]} 62. Kd4+ {[%clk 0:00:14]}  Rc5 {[%clk 0:00:05]} 63. Rh1 {[%clk 0:00:15]}  a5 {[%clk 0:00:06]} 64. Rb1+ {[%clk 0:00:16]}  Ka6 {[%clk 0:00:05]} 65. Rg1 {[%clk 0:00:17]}  a4 {[%clk 0:00:06]} 66. Rg8 {[%clk 0:00:16]}  Ka5 {[%clk 0:00:06]} 67. Rb8 {[%clk 0:00:09]}  a3 {[%clk 0:00:05]} 68. Ra8+ {[%clk 0:00:09]}  Kb4 {[%clk 0:00:06]} 69. Ra6 {[%clk 0:00:10]}  b5 {[%clk 0:00:03]} 70. Rh6 {[%clk 0:00:10]}  Rc4+ {[%clk 0:00:04]} 71. Kd5 {[%clk 0:00:11]}  a2 {[%clk 0:00:04]} 72. Rh1 {[%clk 0:00:11]}  Ka3 {[%clk 0:00:04]} 73. Rh3+ {[%clk 0:00:12]}  Kb2 {[%clk 0:00:04]} 74. Rh2+ {[%clk 0:00:13]}  Rc2 {[%clk 0:00:04]} 75. Rh1 {[%clk 0:00:11]}  a1=Q {[%clk 0:00:05]} 0-1

[Event "January 2 Late 2024"]
[Site "https://www.chess.com"]
[Date "2024.01.02"]
[Round "8"]
[White "Van Foreest, Jorden"]
[Black "Lie, Kjetil A."]
[Result "1-0"]
[Board "22"]
[TimeControl "180+1"]
[WhiteFideId "1039784"]
[BlackFideId "1501984"]
[WhiteElo "2996"]
[BlackElo "2757"]
[WhiteTeam "NED"]
[BlackTeam "NOR"]
[WhiteClock "0:02:21"]
[BlackClock "0:00:00"]

1. d4 {[%clk 0:03:00]}  Nf6 {[%clk 0:02:58]} 2. Nf3 {[%clk 0:03:00]}  e6 {[%clk 0:02:55]} 3. c4 {[%clk 0:03:01]}  c5 {[%clk 0:02:55]} 4. e3 {[%clk 0:03:00]}  cxd4 {[%clk 0:02:50]} 5. exd4 {[%clk 0:03:01]}  d5 {[%clk 0:02:50]} 6. Nc3 {[%clk 0:03:01]}  Be7 {[%clk 0:02:49]} 7. cxd5 {[%clk 0:03:00]}  Nxd5 {[%clk 0:02:49]} 8. Bd3 {[%clk 0:03:00]}  O-O {[%clk 0:02:41]} 9. O-O {[%clk 0:03:01]}  Nc6 {[%clk 0:02:41]} 10. Qe2 {[%clk 0:03:01]}  Nf6 {[%clk 0:02:28]} 11. Rd1 {[%clk 0:03:00]}  Re8 {[%clk 0:02:24]} 12. Bg5 {[%clk 0:03:01]}  Qa5 {[%clk 0:02:21]} 13. Bxf6 {[%clk 0:02:59]}  Bxf6 {[%clk 0:02:20]} 14. d5 {[%clk 0:02:59]}  Nb4 {[%clk 0:02:15]} 15. Bb5 {[%clk 0:03:00]}  Rd8 {[%clk 0:02:08]} 16. d6 {[%clk 0:03:00]}  Bxc3 {[%clk 0:02:00]} 17. bxc3 {[%clk 0:02:59]}  Nd5 {[%clk 0:02:01]} 18. c4 {[%clk 0:02:54]}  Nc3 {[%clk 0:01:48]} 19. Qe1 {[%clk 0:02:54]}  b6 {[%clk 0:01:37]} 20. Bc6 {[%clk 0:02:54]}  Nxd1 {[%clk 0:01:24]} 21. Qxa5 {[%clk 0:02:52]}  bxa5 {[%clk 0:01:24]} 22. Rxd1 {[%clk 0:02:48]}  Rb8 {[%clk 0:01:23]} 23. c5 {[%clk 0:02:48]}  Rb4 {[%clk 0:01:16]} 24. Rc1 {[%clk 0:02:38]}  Ba6 {[%clk 0:01:00]} 25. a3 {[%clk 0:02:39]}  Rb3 {[%clk 0:00:48]} 26. h4 {[%clk 0:02:36]}  Rxa3 {[%clk 0:00:48]} 27. Be4 {[%clk 0:02:29]}  a4 {[%clk 0:00:46]} 28. Ne5 {[%clk 0:02:27]}  Bb5 {[%clk 0:00:37]} 29. c6 {[%clk 0:02:23]}  Bxc6 {[%clk 0:00:27]} 30. Rxc6 {[%clk 0:02:22]}  Ra1+ {[%clk 0:00:20]} 31. Kh2 {[%clk 0:02:22]}  Rd1 {[%clk 0:00:20]} 32. d7 {[%clk 0:02:21]}  f6 {[%clk 0:00:18]} 33. Rxe6 {[%clk 0:02:21]}  Kf8 {[%clk 0:00:13]} 34. Bc6 {[%clk 0:02:20]}  fxe5 {[%clk 0:00:02]} 35. Re8+ {[%clk 0:02:19]}  Kf7 {[%clk 0:00:03]} 36. Rxd8 {[%clk 0:02:20]}  a3 {[%clk 0:00:03]} 37. Ra8 {[%clk 0:02:21]}  a2 {[%clk 0:00:00]} 38. Rxa7 {[%clk 0:02:21]} 1-0

[Event "January 2 Late 2024"]
[Site "https://www.chess.com"]
[Date "2024.01.02"]
[Round "8"]
[White "Grigoriants, Sergey"]
[Black "Schnaider, Ilan"]
[Result "1-0"]
[Board "25"]
[TimeControl "180+1"]
[WhiteFideId "4130804"]
[BlackFideId "169013"]
[WhiteElo "2939"]
[BlackElo "2727"]
[WhiteTeam "HUN"]
[BlackTeam "ARG"]
[WhiteClock "0:00:09"]
[BlackClock "0:00:04"]

1. d4 {[%clk 0:02:55]}  Nf6 {[%clk 0:02:59]} 2. c4 {[%clk 0:02:55]}  g6 {[%clk 0:02:59]} 3. f3 {[%clk 0:02:55]}  d5 {[%clk 0:02:59]} 4. cxd5 {[%clk 0:02:54]}  Nxd5 {[%clk 0:03:00]} 5. e4 {[%clk 0:02:55]}  Nb6 {[%clk 0:03:00]} 6. Nc3 {[%clk 0:02:55]}  Bg7 {[%clk 0:03:01]} 7. Be3 {[%clk 0:02:55]}  O-O {[%clk 0:02:59]} 8. Qd2 {[%clk 0:02:55]}  e5 {[%clk 0:02:58]} 9. d5 {[%clk 0:02:52]}  c6 {[%clk 0:02:59]} 10. h4 {[%clk 0:02:49]}  cxd5 {[%clk 0:02:59]} 11. exd5 {[%clk 0:02:49]}  N8d7 {[%clk 0:03:00]} 12. h5 {[%clk 0:02:48]}  Nf6 {[%clk 0:03:00]} 13. hxg6 {[%clk 0:02:48]}  fxg6 {[%clk 0:03:01]} 14. O-O-O {[%clk 0:02:48]}  e4 {[%clk 0:03:00]} 15. Kb1 {[%clk 0:02:38]}  exf3 {[%clk 0:02:55]} 16. Nxf3 {[%clk 0:02:35]}  Bf5+ {[%clk 0:02:55]} 17. Ka1 {[%clk 0:02:30]}  Rc8 {[%clk 0:02:55]} 18. d6 {[%clk 0:02:14]}  Ne4 {[%clk 0:02:27]} 19. Nxe4 {[%clk 0:02:13]}  Bxe4 {[%clk 0:02:28]} 20. Qb4 {[%clk 0:01:19]}  Bxf3 {[%clk 0:02:01]} 21. gxf3 {[%clk 0:01:17]}  Qf6 {[%clk 0:01:52]} 22. Bh3 {[%clk 0:00:52]}  Rc4 {[%clk 0:01:18]} 23. Qb3 {[%clk 0:00:52]}  Kh8 {[%clk 0:01:17]} 24. d7 {[%clk 0:00:46]}  Rd8 {[%clk 0:00:23]} 25. Rhe1 {[%clk 0:00:31]}  Rc6 {[%clk 0:00:03]} 26. Bd4 {[%clk 0:00:15]}  Qf8 {[%clk 0:00:02]} 27. a3 {[%clk 0:00:12]}  Na8 {[%clk 0:00:01]} 28. Qxb7 {[%clk 0:00:11]}  Rc7 {[%clk 0:00:01]} 29. Qb5 {[%clk 0:00:07]}  Nb6 {[%clk 0:00:01]} 30. Re8 {[%clk 0:00:06]}  Rxe8 {[%clk 0:00:01]} 31. dxe8=Q {[%clk 0:00:07]}  Rc8 {[%clk 0:00:01]} 32. Qxf8+ {[%clk 0:00:06]}  Rxf8 {[%clk 0:00:02]} 33. Bxg7+ {[%clk 0:00:07]}  Kxg7 {[%clk 0:00:03]} 34. Qc5 {[%clk 0:00:07]}  Rf7 {[%clk 0:00:03]} 35. Qd4+ {[%clk 0:00:07]}  Kh6 {[%clk 0:00:03]} 36. Be6 {[%clk 0:00:08]}  Re7 {[%clk 0:00:03]} 37. Rh1+ {[%clk 0:00:07]}  Kg5 {[%clk 0:00:02]} 38. Rg1+ {[%clk 0:00:07]}  Kh6 {[%clk 0:00:02]} 39. Qh4+ {[%clk 0:00:07]}  Kg7 {[%clk 0:00:03]} 40. Qxe7+ {[%clk 0:00:08]}  Kh6 {[%clk 0:00:04]} 41. Rh1# {[%clk 0:00:09]} 1-0

[Event "January 2 Late 2024"]
[Site "https://www.chess.com"]
[Date "2024.01.02"]
[Round "8"]
[White "Cardoso Cardoso, Jose Gabriel"]
[Black "Yoo, Christopher Woojin"]
[Result "0-1"]
[Board "27"]
[TimeControl "180+1"]
[WhiteFideId "4430492"]
[BlackFideId "30909694"]
[WhiteElo "2712"]
[BlackElo "2928"]
[WhiteTeam "COL"]
[BlackTeam "USA"]
[WhiteClock "0:00:00"]
[BlackClock "0:00:02"]

1. d4 {[%clk 0:03:00]}  d5 {[%clk 0:03:00]} 2. c4 {[%clk 0:03:00]}  e6 {[%clk 0:02:58]} 3. Nc3 {[%clk 0:02:57]}  Bb4 {[%clk 0:02:56]} 4. a3 {[%clk 0:02:52]}  Bxc3+ {[%clk 0:02:55]} 5. bxc3 {[%clk 0:02:52]}  c6 {[%clk 0:02:50]} 6. e3 {[%clk 0:02:49]}  Nf6 {[%clk 0:02:47]} 7. Nf3 {[%clk 0:02:46]}  O-O {[%clk 0:02:47]} 8. Bd3 {[%clk 0:02:42]}  b6 {[%clk 0:02:45]} 9. O-O {[%clk 0:02:38]}  Ba6 {[%clk 0:02:44]} 10. cxd5 {[%clk 0:02:39]}  Bxd3 {[%clk 0:02:43]} 11. Qxd3 {[%clk 0:02:39]}  cxd5 {[%clk 0:02:43]} 12. c4 {[%clk 0:02:38]}  dxc4 {[%clk 0:02:43]} 13. Qxc4 {[%clk 0:02:38]}  Qc8 {[%clk 0:02:44]} 14. Qb5 {[%clk 0:02:23]}  Nbd7 {[%clk 0:01:55]} 15. Bb2 {[%clk 0:02:15]}  Qb7 {[%clk 0:01:51]} 16. a4 {[%clk 0:02:13]}  Rfc8 {[%clk 0:01:51]} 17. Rfc1 {[%clk 0:02:09]}  Ne4 {[%clk 0:01:50]} 18. h3 {[%clk 0:02:06]}  Nd6 {[%clk 0:01:45]} 19. Qd3 {[%clk 0:02:02]}  Qe4 {[%clk 0:01:31]} 20. Qxe4 {[%clk 0:01:59]}  Nxe4 {[%clk 0:01:32]} 21. Kf1 {[%clk 0:01:55]}  f6 {[%clk 0:01:31]} 22. Ke2 {[%clk 0:01:55]}  Kf7 {[%clk 0:01:31]} 23. Nd2 {[%clk 0:01:52]}  Nxd2 {[%clk 0:01:26]} 24. Kxd2 {[%clk 0:01:50]}  f5 {[%clk 0:01:27]} 25. f3 {[%clk 0:01:38]}  Nf6 {[%clk 0:01:26]} 26. Ba3 {[%clk 0:01:31]}  Ke8 {[%clk 0:01:24]} 27. Kd3 {[%clk 0:01:31]}  Kd7 {[%clk 0:01:23]} 28. g4 {[%clk 0:01:27]}  Nd5 {[%clk 0:01:16]} 29. Rxc8 {[%clk 0:01:10]}  Rxc8 {[%clk 0:01:15]} 30. Rc1 {[%clk 0:01:11]}  Re8 {[%clk 0:00:49]} 31. Rg1 {[%clk 0:00:55]}  g6 {[%clk 0:00:48]} 32. gxf5 {[%clk 0:00:46]}  exf5 {[%clk 0:00:47]} 33. e4 {[%clk 0:00:47]}  Nf4+ {[%clk 0:00:41]} 34. Ke3 {[%clk 0:00:46]}  Nxh3 {[%clk 0:00:41]} 35. Rh1 {[%clk 0:00:42]}  Ng5 {[%clk 0:00:41]} 36. e5 {[%clk 0:00:36]}  Rc8 {[%clk 0:00:41]} 37. Kd3 {[%clk 0:00:29]}  Ke6 {[%clk 0:00:31]} 38. Bb4 {[%clk 0:00:17]}  Rc7 {[%clk 0:00:15]} 39. Bd6 {[%clk 0:00:14]}  Rc8 {[%clk 0:00:10]} 40. Bb4 {[%clk 0:00:13]}  a6 {[%clk 0:00:04]} 41. f4 {[%clk 0:00:10]}  Ne4 {[%clk 0:00:02]} 42. Rxh7 {[%clk 0:00:10]}  a5 {[%clk 0:00:03]} 43. Re7+ {[%clk 0:00:09]}  Kd5 {[%clk 0:00:03]} 44. Be1 {[%clk 0:00:07]}  Rc1 {[%clk 0:00:04]} 45. Ke2 {[%clk 0:00:05]}  Rc2+ {[%clk 0:00:02]} 46. Kd3 {[%clk 0:00:04]}  Rc1 {[%clk 0:00:03]} 47. Ke2 {[%clk 0:00:04]}  Ra1 {[%clk 0:00:02]} 48. Rd7+ {[%clk 0:00:04]}  Kc6 {[%clk 0:00:03]} 49. e6 {[%clk 0:00:04]}  Rxa4 {[%clk 0:00:02]} 50. d5+ {[%clk 0:00:04]}  Kc5 {[%clk 0:00:02]} 51. e7 {[%clk 0:00:04]}  Nf6 {[%clk 0:00:03]} 52. Bf2+ {[%clk 0:00:02]}  Kb5 {[%clk 0:00:02]} 53. Kf3 {[%clk 0:00:01]}  Re4 {[%clk 0:00:02]} 54. Rd6 {[%clk 0:00:01]}  Ne8 {[%clk 0:00:02]} 55. Rd7 {[%clk 0:00:01]}  a4 {[%clk 0:00:02]} 56. d6 {[%clk 0:00:02]}  a3 {[%clk 0:00:03]} 57. Rd8 {[%clk 0:00:02]}  Nxd6 {[%clk 0:00:04]} 58. Rxd6 {[%clk 0:00:02]}  Rxe7 {[%clk 0:00:04]} 59. Rd3 {[%clk 0:00:01]}  Ra7 {[%clk 0:00:03]} 60. Rd1 {[%clk 0:00:01]}  a2 {[%clk 0:00:03]} 61. Ra1 {[%clk 0:00:01]}  Kc4 {[%clk 0:00:03]} 62. Bxb6 {[%clk 0:00:02]}  Ra3+ {[%clk 0:00:04]} 63. Ke2 {[%clk 0:00:02]}  Kc3 {[%clk 0:00:04]} 64. Kd1 {[%clk 0:00:00]}  Ra4 {[%clk 0:00:02]} 0-1

[Event "January 2 Late 2024"]
[Site "https://www.chess.com"]
[Date "2024.01.02"]
[Round "8"]
[White "Zhigalko, Sergei"]
[Black "Do Valle Cardoso, Lucas"]
[Result "1-0"]
[Board "29"]
[TimeControl "180+1"]
[WhiteFideId "13502956"]
[BlackFideId "2163144"]
[WhiteElo "2910"]
[BlackElo "2705"]
[WhiteTeam "BLR"]
[BlackTeam "BRA"]
[WhiteClock "0:01:16"]
[BlackClock "0:00:51"]

1. e4 {[%clk 0:03:00]}  e5 {[%clk 0:02:56]} 2. Nf3 {[%clk 0:03:00]}  Nc6 {[%clk 0:02:56]} 3. Bc4 {[%clk 0:03:01]}  Nf6 {[%clk 0:02:56]} 4. d3 {[%clk 0:03:01]}  Bc5 {[%clk 0:02:56]} 5. O-O {[%clk 0:03:01]}  d6 {[%clk 0:02:57]} 6. c3 {[%clk 0:03:00]}  a6 {[%clk 0:02:58]} 7. Nbd2 {[%clk 0:03:01]}  Ba7 {[%clk 0:02:58]} 8. Bb3 {[%clk 0:03:01]}  h6 {[%clk 0:02:59]} 9. Re1 {[%clk 0:03:01]}  O-O {[%clk 0:02:59]} 10. Nf1 {[%clk 0:03:01]}  Be6 {[%clk 0:02:58]} 11. Be3 {[%clk 0:02:59]}  Bxe3 {[%clk 0:02:57]} 12. Nxe3 {[%clk 0:03:00]}  Re8 {[%clk 0:02:51]} 13. h3 {[%clk 0:02:58]}  d5 {[%clk 0:02:52]} 14. exd5 {[%clk 0:02:58]}  Nxd5 {[%clk 0:02:53]} 15. Nc4 {[%clk 0:02:41]}  f6 {[%clk 0:02:43]} 16. d4 {[%clk 0:02:41]}  exd4 {[%clk 0:02:16]} 17. Nxd4 {[%clk 0:02:41]}  Nxd4 {[%clk 0:02:16]} 18. Qxd4 {[%clk 0:02:42]}  Bf7 {[%clk 0:02:11]} 19. Na5 {[%clk 0:02:34]}  Rxe1+ {[%clk 0:02:05]} 20. Rxe1 {[%clk 0:02:33]}  c5 {[%clk 0:01:40]} 21. Qxc5 {[%clk 0:01:56]}  b6 {[%clk 0:01:40]} 22. Qd4 {[%clk 0:01:53]}  bxa5 {[%clk 0:01:40]} 23. Rd1 {[%clk 0:01:53]}  Rb8 {[%clk 0:01:38]} 24. Qe4 {[%clk 0:01:20]}  Rxb3 {[%clk 0:01:00]} 25. axb3 {[%clk 0:01:18]}  Qe7 {[%clk 0:00:57]} 26. Qxe7 {[%clk 0:01:16]}  Nxe7 {[%clk 0:00:58]} 27. Rd8+ {[%clk 0:01:16]}  Be8 {[%clk 0:00:51]} 28. Rxe8+ {[%clk 0:01:16]} 1-0

[Event "January 2 Late 2024"]
[Site "https://www.chess.com"]
[Date "2024.01.02"]
[Round "8"]
[White "Brodsky, David"]
[Black "Syaputra, Arifa Rizki"]
[Result "1-0"]
[Board "30"]
[TimeControl "180+1"]
[WhiteFideId "2073250"]
[BlackFideId "7105100"]
[WhiteElo "2884"]
[BlackElo "2702"]
[WhiteTeam "USA"]
[BlackTeam "INA"]
[WhiteClock "0:00:08"]
[BlackClock "0:00:00"]

1. e4 {[%clk 0:03:00]}  e5 {[%clk 0:02:55]} 2. Nf3 {[%clk 0:03:01]}  Nc6 {[%clk 0:02:56]} 3. Bb5 {[%clk 0:03:00]}  Nge7 {[%clk 0:02:54]} 4. d4 {[%clk 0:02:59]}  exd4 {[%clk 0:02:50]} 5. Nxd4 {[%clk 0:03:00]}  g6 {[%clk 0:02:50]} 6. Nc3 {[%clk 0:02:56]}  Bg7 {[%clk 0:02:50]} 7. Be3 {[%clk 0:02:55]}  O-O {[%clk 0:02:49]} 8. Nxc6 {[%clk 0:02:55]}  dxc6 {[%clk 0:02:44]} 9. Qxd8 {[%clk 0:02:52]}  Rxd8 {[%clk 0:02:44]} 10. Bc4 {[%clk 0:02:48]}  b5 {[%clk 0:02:35]} 11. Bb3 {[%clk 0:02:46]}  a5 {[%clk 0:02:34]} 12. Bc5 {[%clk 0:02:22]}  a4 {[%clk 0:02:22]} 13. Bxe7 {[%clk 0:02:21]}  Re8 {[%clk 0:02:23]} 14. Bxf7+ {[%clk 0:01:49]}  Kxf7 {[%clk 0:02:21]} 15. Bb4 {[%clk 0:01:50]}  a3 {[%clk 0:02:09]} 16. O-O-O {[%clk 0:01:15]}  Be6 {[%clk 0:02:00]} 17. Kb1 {[%clk 0:00:49]}  axb2 {[%clk 0:01:53]} 18. Rd3 {[%clk 0:00:49]}  Reb8 {[%clk 0:01:04]} 19. Rhd1 {[%clk 0:00:33]}  c5 {[%clk 0:01:02]} 20. Bxc5 {[%clk 0:00:34]}  b4 {[%clk 0:01:03]} 21. Nd5 {[%clk 0:00:32]}  Rb7 {[%clk 0:00:52]} 22. Bd4 {[%clk 0:00:25]}  c6 {[%clk 0:00:45]} 23. Bxg7 {[%clk 0:00:19]}  Kxg7 {[%clk 0:00:35]} 24. Nf4 {[%clk 0:00:19]}  Bxa2+ {[%clk 0:00:14]} 25. Kxb2 {[%clk 0:00:19]}  Bf7 {[%clk 0:00:15]} 26. Rd7 {[%clk 0:00:17]}  Raa7 {[%clk 0:00:07]} 27. Rxb7 {[%clk 0:00:15]}  Rxb7 {[%clk 0:00:08]} 28. e5 {[%clk 0:00:15]}  Re7 {[%clk 0:00:07]} 29. Nd3 {[%clk 0:00:12]}  Rb7 {[%clk 0:00:03]} 30. Ra1 {[%clk 0:00:08]}  Bd5 {[%clk 0:00:04]} 31. g3 {[%clk 0:00:07]}  Kf7 {[%clk 0:00:04]} 32. Ra5 {[%clk 0:00:07]}  Re7 {[%clk 0:00:03]} 33. f4 {[%clk 0:00:07]}  Rb7 {[%clk 0:00:04]} 34. Ra4 {[%clk 0:00:07]}  b3 {[%clk 0:00:04]} 35. c4 {[%clk 0:00:07]}  Be4 {[%clk 0:00:00]} 36. Nc5 {[%clk 0:00:08]} 1-0

[Event "January 2 Late 2024"]
[Site "https://www.chess.com"]
[Date "2024.01.02"]
[Round "8"]
[White "Atanasov, Anthony"]
[Black "Remizov, Yaroslav"]
[Result "0-1"]
[Board "34"]
[TimeControl "180+1"]
[WhiteFideId "2623897"]
[BlackFideId "34134015"]
[WhiteElo "2674"]
[BlackElo "2840"]
[WhiteTeam "CAN"]
[BlackTeam "RUS"]
[WhiteClock "0:00:00"]
[BlackClock "0:00:15"]

1. d4 {[%clk 0:03:00]}  d5 {[%clk 0:02:59]} 2. Bf4 {[%clk 0:02:51]}  Nf6 {[%clk 0:02:59]} 3. e3 {[%clk 0:02:52]}  c5 {[%clk 0:02:59]} 4. Nf3 {[%clk 0:02:52]}  Nc6 {[%clk 0:02:59]} 5. Nbd2 {[%clk 0:02:53]}  g6 {[%clk 0:02:56]} 6. dxc5 {[%clk 0:02:52]}  Bg7 {[%clk 0:02:56]} 7. Bb5 {[%clk 0:02:51]}  Nd7 {[%clk 0:02:45]} 8. c4 {[%clk 0:02:38]}  Nxc5 {[%clk 0:02:43]} 9. cxd5 {[%clk 0:02:33]}  Qxd5 {[%clk 0:02:44]} 10. O-O {[%clk 0:02:14]}  O-O {[%clk 0:02:41]} 11. Nc4 {[%clk 0:02:11]}  Nd3 {[%clk 0:02:30]} 12. Nb6 {[%clk 0:01:44]}  Qxb5 {[%clk 0:01:51]} 13. Nxa8 {[%clk 0:01:41]}  Nxf4 {[%clk 0:01:51]} 14. exf4 {[%clk 0:01:42]}  Bg4 {[%clk 0:01:47]} 15. Nc7 {[%clk 0:01:42]}  Qa5 {[%clk 0:01:48]} 16. Nd5 {[%clk 0:01:18]}  Rd8 {[%clk 0:01:48]} 17. Nxe7+ {[%clk 0:01:14]}  Nxe7 {[%clk 0:01:48]} 18. Qb3 {[%clk 0:01:13]}  Qb6 {[%clk 0:01:20]} 19. Rad1 {[%clk 0:01:05]}  Rxd1 {[%clk 0:01:04]} 20. Rxd1 {[%clk 0:01:06]}  Qxb3 {[%clk 0:01:02]} 21. Rd8+ {[%clk 0:01:06]}  Bf8 {[%clk 0:01:02]} 22. axb3 {[%clk 0:01:06]}  Bxf3 {[%clk 0:01:03]} 23. gxf3 {[%clk 0:01:06]}  Nc6 {[%clk 0:01:02]} 24. Rc8 {[%clk 0:00:15]}  Kg7 {[%clk 0:00:48]} 25. Kg2 {[%clk 0:00:12]}  Bd6 {[%clk 0:00:40]} 26. f5 {[%clk 0:00:12]}  gxf5 {[%clk 0:00:39]} 27. h4 {[%clk 0:00:08]}  h5 {[%clk 0:00:32]} 28. Re8 {[%clk 0:00:07]}  Be5 {[%clk 0:00:31]} 29. b4 {[%clk 0:00:03]}  a6 {[%clk 0:00:30]} 30. b3 {[%clk 0:00:02]}  Bf6 {[%clk 0:00:24]} 31. b5 {[%clk 0:00:01]}  axb5 {[%clk 0:00:23]} 32. Rc8 {[%clk 0:00:01]}  b4 {[%clk 0:00:17]} 33. Rc7 {[%clk 0:00:01]}  Bc3 {[%clk 0:00:14]} 34. Rxb7 {[%clk 0:00:00]}  Nd4 {[%clk 0:00:15]} 0-1

[Event "January 2 Late 2024"]
[Site "https://www.chess.com"]
[Date "2024.01.02"]
[Round "8"]
[White "Panchenko, Dmitry"]
[Black "Golubev, Mikhail"]
[Result "1-0"]
[Board "35"]
[TimeControl "180+1"]
[WhiteFideId "4169158"]
[BlackFideId "14100983"]
[WhiteElo "2822"]
[BlackElo "2633"]
[WhiteTeam "RUS"]
[BlackTeam "UKR"]
[WhiteClock "0:01:29"]
[BlackClock "0:00:15"]

1. e4 {[%clk 0:03:00]}  c5 {[%clk 0:02:59]} 2. Nf3 {[%clk 0:03:00]}  d6 {[%clk 0:02:59]} 3. d4 {[%clk 0:03:00]}  Nf6 {[%clk 0:03:00]} 4. Nc3 {[%clk 0:02:59]}  cxd4 {[%clk 0:03:00]} 5. Nxd4 {[%clk 0:03:00]}  g6 {[%clk 0:03:00]} 6. Be3 {[%clk 0:02:59]}  Bg7 {[%clk 0:03:00]} 7. f3 {[%clk 0:02:59]}  O-O {[%clk 0:03:01]} 8. Qd2 {[%clk 0:02:59]}  Nc6 {[%clk 0:03:01]} 9. O-O-O {[%clk 0:02:59]}  d5 {[%clk 0:03:00]} 10. Nxc6 {[%clk 0:02:58]}  bxc6 {[%clk 0:02:59]} 11. Bh6 {[%clk 0:02:59]}  Bxh6 {[%clk 0:02:58]} 12. Qxh6 {[%clk 0:02:56]}  Rb8 {[%clk 0:02:58]} 13. e5 {[%clk 0:02:04]}  Nd7 {[%clk 0:02:58]} 14. Rd4 {[%clk 0:02:03]}  Re8 {[%clk 0:02:57]} 15. e6 {[%clk 0:02:00]}  Nf6 {[%clk 0:02:56]} 16. exf7+ {[%clk 0:01:57]}  Kxf7 {[%clk 0:02:57]} 17. Ra4 {[%clk 0:01:56]}  a5 {[%clk 0:02:44]} 18. g4 {[%clk 0:01:53]}  Qb6 {[%clk 0:02:15]} 19. b3 {[%clk 0:01:52]}  Qc5 {[%clk 0:02:05]} 20. Kb2 {[%clk 0:01:50]}  Rb4 {[%clk 0:02:05]} 21. a3 {[%clk 0:01:46]}  Rxa4 {[%clk 0:02:00]} 22. Nxa4 {[%clk 0:01:46]}  Qd4+ {[%clk 0:01:59]} 23. Nc3 {[%clk 0:01:42]}  a4 {[%clk 0:00:54]} 24. b4 {[%clk 0:01:39]}  c5 {[%clk 0:00:49]} 25. b5 {[%clk 0:01:37]}  Be6 {[%clk 0:00:39]} 26. Bh3 {[%clk 0:01:35]}  Rf8 {[%clk 0:00:32]} 27. g5 {[%clk 0:01:34]}  Nh5 {[%clk 0:00:21]} 28. Bxe6+ {[%clk 0:01:34]}  Kxe6 {[%clk 0:00:21]} 29. Qxf8 {[%clk 0:01:32]}  Nf4 {[%clk 0:00:18]} 30. Re1+ {[%clk 0:01:31]}  Kd7 {[%clk 0:00:15]} 31. Rxe7+ {[%clk 0:01:29]} 1-0